Cogmind - Beta 11.1 @@@ ROGUE MODE // 2022.05.27 @ 14:57:43 Player: btmk16 Result: Destroyed by G-47 Trooper with Particle Gun Performance ------------- Evolutions (3) 1500 Regions Visited (6) 1200 Robots Destroyed (178) 890 Value Destroyed (6691) 6691 Prototype IDs (7) 140 Alien Tech Used (0) 0 Bonus (2891) 2891 TOTAL SCORE: 13312 Bonus ------- High Alert Combat Kills 2891 Cogmind --------- Core Integrity 0/700 Matter 168/300 Energy 486/500 System Corruption 1% Temperature Cool (54) Movement Treading (320) Ox2 Location -7/Factory Parts ------- > --- POWER (1) -------- (None) > --- PROPULSION (3) --- Light Treads > --- UTILITY (5) ------ Improved Heat Sink High-capacity Storage Unit Compact Battery Compact Battery Kinecellerator > --- WEAPON (4) ------- Flak Cannon Mini Assault Cannon > --- INVENTORY (20) --- Micro Nuclear Core Compact Battery (200) High-capacity Matter Pod (200) Improved Sensor Array Kinecellerator Improved Transmission Jammer System Restoration Module Long-range Tractor Beam Heavy Laser Proton Missile Launcher Heavy Rocket Launcher Spear Peak State ------------ > --- POWER ------------ Antimatter Reactor > --- PROPULSION ------- Medium Treads Heavy Siege Treads > --- UTILITY ---------- Improved Cooling System Improved Cooling System High-capacity Storage Unit Hardened Light Armor Plating Hardened Medium Armor Plating > --- WEAPON ----------- Heavy Beamcaster Heavy Beamcaster Advanced Assault Cannon Mini Assault Cannon > --- INVENTORY -------- Micro Nuclear Core Improved Treads Advanced Treads Medium Treads Improved Cooling System High-capacity Matter Pod Improved Sensor Array Kinecellerator Improved Transmission Jammer Hardened Heavy Armor Plating Improved Light Armor Plating Layered Light Armor Plating Medium Insulated Plating System Restoration Module Long-range Tractor Beam Heavy Laser Gauss Cannon Heavy Rocket Launcher Spear [Rating: 67] Favorites ----------- Power Antimatter Reactor Engine Heavy Ion Engine Power Core Light Nuclear Core Reactor Antimatter Reactor Propulsion Improved Treads Treads Improved Treads Leg Aluminum Leg Utility Improved Cooling System Device Improved Cooling System Storage High-capacity Storage Unit Processor Improved Targeting Computer Protection Hardened Medium Armor Plating Weapon Heavy Particle Cannon Energy Gun Heavy Beamcaster Energy Cannon Heavy Particle Cannon Ballistic Gun Improved Assault Rifle Ballistic Cannon Gauss Cannon Launcher Rocket Launcher Build | -11 -10 -9 -8 -7 -7 -7 ------- Run | Scr Mat Mat Mat Fac Was Fac Slots Evolved 6 | . . 2 2 2 . . Power . | . . . . . . . Propulsion 1 | . . 1 . . . . Utility 3 | . . 1 2 . . . Weapon 2 | . . . . 2 . . Parts Attached 131 | . 9 10 11 27 5 69 Power 9 | . . 1 . 3 1 4 Engine 5 | . . 1 . 3 . 1 Core 2 | . . . . . . 2 Reactor 2 | . . . . . 1 1 Propulsion 24 | . 4 2 1 5 2 10 Treads 24 | . 4 2 1 5 2 10 Leg . | . . . . . . . Wheel . | . . . . . . . Hover . | . . . . . . . Flight . | . . . . . . . Utility 55 | . 3 5 5 8 2 32 Device 26 | . 1 2 2 4 1 16 Storage 8 | . 1 2 1 . . 4 Processor 1 | . 1 . . . . . Hackware . | . . . . . . . Protection 20 | . . 1 2 4 1 12 Artifact . | . . . . . . . Weapon 43 | . 2 2 5 11 . 23 Energy Gun 6 | . . . . . . 6 Energy Cannon 14 | . 2 2 2 3 . 5 Ballistic Gun 9 | . . . 2 5 . 2 Ballistic Cannon 10 | . . . . 2 . 8 Launcher 4 | . . . 1 1 . 2 Special Weapon . | . . . . . . . Impact Weapon . | . . . . . . . Slashing Weapon . | . . . . . . . Piercing Weapon . | . . . . . . . Special Melee Weapon . | . . . . . . . Unidentified Prototypes 7 | . 1 1 1 1 . 3 Parts Lost 40 | . . . . 9 . 31 Power 5 | . . . . 1 . 4 Propulsion 11 | . . . . 4 . 7 Utility 12 | . . . . 1 . 11 Weapon 12 | . . . . 3 . 9 Highest Loss Streak 6 | . . . . 4 . 6 To Critical Strikes . | . . . . . . . Average Slot Usage (%) 93 | . 93 99 97 99 96 90 Engine 4 | . 14 11 9 7 1 . Reactor 3 | . . . . . 5 5 Treads 20 | . 22 33 27 22 19 16 Device 14 | . 1 12 16 15 15 14 Storage 9 | . 16 11 9 7 7 8 Protection 11 | . . 9 16 14 15 11 Energy Gun 2 | . . . . . . 4 Energy Cannon 12 | . 24 22 8 17 15 8 Ballistic Gun 3 | . 3 . 9 11 . . Ballistic Cannon 9 | . . . . . 15 14 Naked Turns . | . . . . . . . Heaviest Build 105 | 12 21 39 58 76 84 105 Greatest Support 98 | 20 46 69 69 69 92 98 Greatest Overweight (x) 1 | . . . . 1 1 1 Average Overweight (x) . | . . . . . . . Largest Inventory Capacity 20 | 8 8 10 15 15 15 20 Average Capacity 16 | 8 8 9 10 15 15 19 Most Carried 20 | 6 8 10 12 15 15 20 Average Carried 14 | 6 7 9 9 14 15 17 Final Capacity 20 | 8 8 10 15 15 15 20 Final Carried 15 | 6 8 10 12 15 15 12 Class Distribution -------------------- 62% | Tank 31% | Mutant 5% | Scavenger-Mutant Dominant Class ---------------- Mutant | -10/Materials Mutant | -9/Materials Mutant | -8/Materials Tank | -7/Factory Tank | -7/Waste Tank | -7/Factory Resources | -11 -10 -9 -8 -7 -7 -7 ----------- Run | Scr Mat Mat Mat Fac Was Fac Matter Collected 4667 | 202 86 95 239 546 242 3257 Remotely 725 | . . . . . . 725 Salvage Created 6923 | . 402 873 707 1012 . 3929 Parts 363 | . 20 50 48 56 . 189 Haulers Intercepted 13 | . 2 6 2 . . 3 Recyclers Shooed 6 | . 1 2 1 . . 2 Parts Field Recycled . | . . . . . . . Retrieved Matter . | . . . . . . . Parts Self-Destructed . | . . . . . . . Prevented . | . . . . . . . Kills | -11 -10 -9 -8 -7 -7 -7 ------- Run | Scr Mat Mat Mat Fac Was Fac Combat Hostiles Destroyed 148 | . 7 11 17 24 . 89 Guns 38 | . . . 10 5 . 23 Cannons 93 | . 7 11 3 15 . 57 AOE 16 | . . . 4 4 . 8 Classes Destroyed 16 | . 2 4 3 4 . 3 Worker 5 | . . . . 2 . 3 Builder 7 | . . . 2 . . 5 Tunneler 2 | . . . . . . 2 Hauler 13 | . 2 6 2 . . 3 Recycler 8 | . . 3 . . . 5 Mechanic 1 | . . . . . . 1 Operator 1 | . . 1 . . . . Watcher 2 | . . . 1 . . 1 Swarmer 25 | . . 4 8 3 . 10 Grunt 69 | . 7 5 7 9 . 41 Brawler 7 | . . . . . . 7 Duelist 8 | . . . 1 1 . 6 Protector 7 | . . . . 1 . 6 Sentry 14 | . . 2 1 2 . 9 Hunter 3 | . . . . 2 . 1 Programmer 15 | . . . . 6 . 9 Best Kill Streak 13 | . 5 4 4 5 . 13 Combat Bots Only 13 | . 4 4 4 5 . 13 Max Kills in Single Turn 7 | . 1 1 4 2 . 7 Gunslinging 1 | . . . 1 . . . Exploded 4 | . . . 4 2 . 3 Melee . | . . . . . . . Uniques/NPCs Destroyed . | . . . . . . . Combat | -11 -10 -9 -8 -7 -7 -7 -------- Run | Scr Mat Mat Mat Fac Was Fac Damage Taken 10654 | . 80 307 656 2038 . 7573 Core 788 | . 36 16 25 152 . 559 Absorbed by Shields . | . . . . . . . Reduced by Siege Mode 469 | . . . . . . 469 Regen/Repaired (Parts) 801 | . . . . 174 . 627 Core Remaining (%) 94 | 100 85 96 95 . . . Volleys Fired 379 | 1 15 44 40 56 . 223 Largest 4 | 2 2 2 2 4 . 4 Hottest 279 | 40 136 136 150 258 . 279 Shots Fired 1097 | 2 30 88 79 219 1 678 Gun 354 | 2 . . 44 98 . 210 Cannon 739 | . 30 88 34 119 1 467 Launcher 4 | . . . 1 2 . 1 Special . | . . . . . . . Kinetic 545 | 2 . . 44 98 1 400 Thermal 548 | . 30 88 34 119 . 277 Explosive 4 | . . . 1 2 . 1 Electromagnetic . | . . . . . . . Robot Hit Streak 46 | . 21 7 21 14 . 46 Robot Miss Streak 11 | . 1 2 2 5 . 11 Penetration Max . | . . . . . . . Secondary Targets 2 | . . . 2 . . . Max Gunslinging Chain 1 | . . . 1 . . . Shots Hit Robots 660 | . 24 50 58 121 . 407 Core Hits 344 | . 10 21 33 61 . 219 Critical Kills 2 | . . 1 . . . 1 Critical Parts Destroyed . | . . . . . . . Critical Strikes 18 | . . 1 . . . 17 Burn 6 | . . . . . . 6 Meltdown 2 | . . 1 . . . 1 Blast 10 | . . . . . . 10 Melee Attacks . | . . . . . . . Impact . | . . . . . . . Slashing . | . . . . . . . Piercing . | . . . . . . . Sneak Attacks . | . . . . . . . Combat Hostiles . | . . . . . . . Follow-up Attacks . | . . . . . . . Damage Inflicted 19390 | . 496 1084 1445 3285 . 13080 Guns 4510 | . . . 543 910 . 3057 Cannons 11813 | . 490 1051 650 1912 . 7710 Explosions 2973 | . . . 246 462 . 2265 Melee . | . . . . . . . Ramming 94 | . 6 33 6 1 . 48 Kinetic 7346 | . . . 543 910 . 5893 Thermal 10983 | . 490 1051 650 1912 . 6880 Explosive 953 | . . . 246 448 . 259 Electromagnetic 14 | . . . . 14 . . Impact . | . . . . . . . Slashing . | . . . . . . . Piercing . | . . . . . . . Highest Corruption 13 | . . . . 12 12 13 Average Corruption 9 | . . . . 7 12 10 Corruption Purged 16 | . . . . . . 16 Corruption Blocked . | . . . . . . . Effects 208 | . . . . 50 23 135 Message Errors 68 | . . . . 20 7 41 Matter Fused 54 | . . . . 13 6 35 Heat Flow Errors 16 | . . . . 3 2 11 Energy Discharges 24 | . . . . 5 4 15 Parts Rejected 2 | . . . . 1 . 1 Data Loss (minor) 17 | . . . . 3 2 12 Data Loss (major) 11 | . . . . 1 1 9 Misfires 10 | . . . . 3 1 6 Alerts 4 | . . . . . . 4 Weapon Failures 2 | . . . . 1 . 1 Overload Shots . | . . . . . . . Overflow Damage 808 | . . 12 25 106 . 665 Projectiles 197 | . . 12 15 70 . 100 Explosions 611 | . . . 10 36 . 565 Melee . | . . . . . . . Knockbacks 73 | . . . . . . 73 Impact . | . . . . . . . Kinetic 68 | . . . . . . 68 Secondary 5 | . . . . . . 5 Self-Inflicted Damage 335 | . . . . 84 . 251 Shots 6 | . . . . 3 . 3 Rammed 22 | . 2 8 3 1 . 8 Targets Rammed 24 | . 2 9 3 1 . 9 Kicked . | . . . . . . . Crushed 2 | . . 1 . . . 1 Highest Temperature 448 | . 312 198 107 394 202 448 Average Temperature 102 | . 143 42 63 66 112 122 Received Heat Transfer 3930 | . 42 153 270 351 . 3114 Effects 18 | . . . . 1 . 17 Shutdowns 1 | . . . . . . 1 Energy Bleed 4 | . . . . 1 . 3 Interference 9 | . . . . . . 9 Matter Decay 2 | . . . . . . 2 Damage (minor) 2 | . . . . . . 2 Siege Activations 14 | . . . . . . 14 Total Turns 464 | . . . . . . 464 Longest Duration 122 | . . . . . . 122 Robots Corrupted . | . . . . . . . Combat Hostiles . | . . . . . . . Parts Fried . | . . . . . . . Impact Corruptions . | . . . . . . . Robots Melted 2 | . . 1 . . . 1 Combat Hostiles 1 | . . . . . . 1 Parts Melted 31 | . 4 3 2 11 . 11 Heat Transferred 14979 | . 888 1887 962 2733 . 8509 Parts Sabotaged . | . . . . . . . Parts Stolen . | . . . . . . . Parts Stripped . | . . . . . . . Power Chain Reactions . | . . . . . . . Missiles Intercepted . | . . . . . . . Alert | -11 -10 -9 -8 -7 -7 -7 ------- Run | Scr Mat Mat Mat Fac Was Fac Peak Influence 2234 | . 134 252 326 587 186 2234 Initial 186 | . . 54 42 147 186 . Average 618 | . 77 157 135 384 117 948 Maximum Alert Level 5 | . . 1 1 2 . 5 Low Security (%) 38 | 100 100 58 83 19 100 21 Level 1 10 | . . 41 16 21 . 2 Level 2 19 | . . . . 58 . 16 Level 3 8 | . . . . . . 15 Level 4 12 | . . . . . . 22 Level 5 11 | . . . . . . 20 High Security . | . . . . . . . Max Security . | . . . . . . . Squads Dispatched 39 | . 2 1 . 10 . 26 Investigation 6 | . 1 1 . 2 . 2 Extermination 12 | . . . . 4 . 8 Reinforcement 3 | . 1 . . 1 . 1 Assault 13 | . . . . 1 . 12 Garrison 5 | . . . . 2 . 3 Intercept . | . . . . . . . Searches Triggered . | . . . . . . . Construction Impeded 1 | . . . . . . 1 Haulers Reinforced . | . . . . . . . Active Scanning Responses . | . . . . . . . Cargo Convoy Interrupts . | . . . . . . . Stealth | -11 -10 -9 -8 -7 -7 -7 --------- Run | Scr Mat Mat Mat Fac Was Fac Distress Signals 7 | . . 4 1 2 . . Communications Jammed . | . . . . . . . Distress Signals . | . . . . . . . Times Spotted 218 | . 13 17 24 33 . 131 Peak Tracking Total 11 | . 3 5 5 6 . 11 Tactical Retreats 10 | . . 1 1 2 . 6 Traps | -11 -10 -9 -8 -7 -7 -7 ------- Run | Scr Mat Mat Mat Fac Was Fac Traps Triggered 9 | . 1 . . 3 . 5 Indirectly . | . . . . . . . Trap Hack Attempts . | . . . . . . . Triggered . | . . . . . . . Disarmed . | . . . . . . . Reprogrammed . | . . . . . . . Reused . | . . . . . . . Traps Extracted . | . . . . . . . Installed . | . . . . . . . Triggered . | . . . . . . . Machines | -11 -10 -9 -8 -7 -7 -7 ---------- Run | Scr Mat Mat Mat Fac Was Fac Machines Disabled 40 | . . . . 9 . 31 Max in Single Turn 13 | . . . . 4 . 13 Garrison Access 2 | . . . . 2 . . Machines Sabotaged . | . . . . . . . Garrisons Compromised . | . . . . . . . Overloaded Fab Kills . | . . . . . . . Hacking | -11 -10 -9 -8 -7 -7 -7 --------- Run | Scr Mat Mat Mat Fac Was Fac Machines Accessed 29 | . 2 3 1 6 . 17 Terminals 14 | . 2 3 1 1 . 7 Fabricators 6 | . . . . 2 . 4 Repair Stations 3 | . . . . 1 . 2 Recycling Units 2 | . . . . . . 2 Scanalyzers . | . . . . . . . Garrison Access 4 | . . . . 2 . 2 Total Hacks 70 | . 3 5 5 15 . 42 Successful 25 | . 3 3 1 3 . 15 Failed 45 | . . 2 4 12 . 27 Catastrophic 12 | . . 1 1 2 . 8 Database Lockouts . | . . . . . . . Manual 31 | . . 1 5 4 . 21 Terminals 34 | . 3 5 5 2 . 19 Fabricators 13 | . . . . 4 . 9 Repair Stations 7 | . . . . 2 . 5 Recycling Units 6 | . . . . . . 6 Scanalyzers . | . . . . . . . Garrison Access 10 | . . . . 7 . 3 Terminal Hacks 10 | . 3 2 1 . . 4 Robot Analysis 1 | . . . 1 . . . Terminal Index 1 | . 1 . . . . . Alert Level 2 | . . . . . . 2 Unreport Threat 1 | . . . . . . 1 Locate Traps 1 | . . . . . . 1 Transport Status 1 | . 1 . . . . . Hauler Manifests 1 | . . 1 . . . . Registered Components 1 | . . 1 . . . . Zone Layout 1 | . 1 . . . . . Fabricator Hacks 2 | . . . . . . 2 Network Status 2 | . . . . . . 2 Repair Station Hacks 6 | . . . . 2 . 4 Scan Component 3 | . . . . 1 . 2 Repair 3 | . . . . 1 . 2 Recycling Unit Hacks 1 | . . . . . . 1 Retrieve Components 1 | . . . . . . 1 Scanalyzer . | . . . . . . . Garrison Access Hacks 1 | . . . . 1 . . Seal Access 1 | . . . . 1 . . Unauthorized Hacks 5 | . . 1 . . . 4 Terminals 3 | . . 1 . . . 2 Track 2 | . . 1 . . . 1 Botnet 1 | . . . . . . 1 Fabricators 1 | . . . . . . 1 Fabnet 1 | . . . . . . 1 Repair Stations . | . . . . . . . Recycling Units 1 | . . . . . . 1 Mask 1 | . . . . . . 1 Scanalyzers . | . . . . . . . Garrison Access . | . . . . . . . Data Cores Recovered . | . . . . . . . Used . | . . . . . . . Hacking Detections 23 | . 1 1 1 4 . 16 Full Trace Events 4 | . . 1 . 2 . 1 Feedback Events 1 | . . . . 1 . . Corruption 1 | . . . . 1 . . Feedback Blocked . | . . . . . . . Robot Schematics Acquired . | . . . . . . . Robots Built . | . . . . . . . Authchips . | . . . . . . . Time . | . . . . . . . Total Robot Build Rating . | . . . . . . . Part Schematics Acquired . | . . . . . . . Parts Built . | . . . . . . . Authchips . | . . . . . . . Time . | . . . . . . . Total Part Build Rating . | . . . . . . . Parts Repaired 3 | . . . . 1 . 2 Time 168 | . . . . 44 . 124 Parts Recycled . | . . . . . . . Recycled Matter . | . . . . . . . Retrieved Matter . | . . . . . . . Retrieved Components . | . . . . . . . Parts Scanalyzed . | . . . . . . . Part Schematics Acquired . | . . . . . . . Parts Damaged . | . . . . . . . Bothacking | -11 -10 -9 -8 -7 -7 -7 ------------ Run | Scr Mat Mat Mat Fac Was Fac Used RIF Installer . | . . . . . . . Robots Hacked . | . . . . . . . Non-combat . | . . . . . . . Combat . | . . . . . . . Robot Hacks Applied . | . . . . . . . Relay Couplers Released 4 | . . . . . . 4 Programmers 4 | . . . . . . 4 Fabnet Peak Effective % . | . . . . . . . Robots Rewired . | . . . . . . . Allies Hacked . | . . . . . . . Hacks Repelled . | . . . . . . . Allies | -11 -10 -9 -8 -7 -7 -7 -------- Run | Scr Mat Mat Mat Fac Was Fac Total Allies . | . . . . . . . Largest Group . | . . . . . . . Highest-Rated Group . | . . . . . . . Highest-Rated Ally . | . . . . . . . Total Orders . | . . . . . . . Ally Attacks . | . . . . . . . Total Damage . | . . . . . . . Kills . | . . . . . . . Allies Corrupted . | . . . . . . . Allies Melted . | . . . . . . . Intel | -11 -10 -9 -8 -7 -7 -7 ------- Run | Scr Mat Mat Mat Fac Was Fac Robot Analysis Total 1 | . . . 1 . . . Derelict Logs Recovered . | . . . . . . . Drone Launches . | . . . . . . . Drone Recoveries . | . . . . . . . Exploration | -11 -10 -9 -8 -7 -7 -7 ------------- Run | Scr Mat Mat Mat Fac Was Fac Turns Passed 10492 | 31 587 999 709 1824 631 5711 Spaces Moved 4458 | 24 312 476 346 694 315 2291 Core . | . . . . . . . Treads 4359 | . 237 476 346 694 315 2291 Legs 99 | 24 75 . . . . . Wheels . | . . . . . . . Hover . | . . . . . . . Flight . | . . . . . . . Fastest Speed 120 | 120 120 160 155 155 162 155 Average Speed 182 | 120 150 160 159 209 196 186 Slowest Speed 270 | 120 160 160 160 235 270 255 Overloaded Moves . | . . . . . . . Propulsion Burnouts . | . . . . . . . Robots Hopped . | . . . . . . . Cave-ins Triggered . | . . . . . . . Exploration Rate (%) 43 | 2 64 43 32 18 89 58 Regions Visited 6 Branch Regions . Pre-discovered Areas . | . . . . . . . Known Exits Taken . | . . . . . . . Unknown Exits Taken 4 | 1 1 1 1 . . . Scrap Searched . | . . . . . . . Spaces Dug 17 | . . . . . . 17 Terrain Destroyed 292 | . . . 23 40 . 229 Melee . | . . . . . . . Projectile 92 | . . . 8 . . 84 AOE 200 | . . . 15 40 . 145 Terrain Rammed . | . . . . . . . Walls Destroyed . | . . . . . . . Machines Disabled . | . . . . . . . Actions | -11 -10 -9 -8 -7 -7 -7 --------- Run | Scr Mat Mat Mat Fac Was Fac Total 5996 | 24 404 634 421 929 335 3249 Wait 850 | . 47 62 15 115 . 611 Move 4453 | 23 311 475 345 694 314 2291 Hop . | . . . . . . . Pick Up 63 | . 7 15 2 17 5 17 Fast Attach 50 | . 5 2 2 10 5 26 Attach 41 | . . 3 2 10 . 26 Detach 18 | . 3 1 1 2 . 11 Swap 41 | . 4 5 7 7 . 18 Drop 75 | . 10 18 4 15 11 17 Fire 379 | 1 15 44 40 56 . 223 Melee . | . . . . . . . Ram . | . . . . . . . Kick . | . . . . . . . Crush 24 | . 2 9 3 1 . 9 Escape Stasis 2 | . . . . 2 . . Rewire . | . . . . . . . Trap . | . . . . . . . Miscellaneous . | . . . . . . . Route ------- -11/Scrapyard -10/Materials (discovered 2 exits: *Mat x2) -9/Materials (discovered 2 exits: *Mat / [*Min]) -8/Materials -7/Factory -7/Waste -7/Factory (discovered 5 exits: [*Fac x3] / [*Low x2]) History --------- Turn | Location | Event 1 | -11/Scrapyard | Discovered new exit (range 1) 32 | -11/Scrapyard | Entered Materials 308 | -10/Materials | Discovered new exit (range 5) 319 | -10/Materials | Build established: Mutant 460 | -10/Materials | Discovered new exit (range 8) 619 | -10/Materials | Entered another Materials area 619 | -9/Materials | Evolved 2 slots: Propulsion x1, Utility x1 1295 | -9/Materials | Discovered new exit (range 12) 1390 | -9/Materials | Discovered new exit (range 15) 1618 | -9/Materials | Entered another Materials area 1618 | -8/Materials | Evolved 2 slots: Utility x2 2242 | -8/Materials | Discovered new exit (range 16) 2327 | -8/Materials | Entered Factory 2327 | -7/Factory | Evolved 2 slots: Weapon x2 2411 | -7/Factory | Found Powered Armor 2416 | -7/Factory | Found Powered Armor 2475 | -7/Factory | Garrison activated, responded to threat 2610 | -7/Factory | Build established: Tank 2761 | -7/Factory | Lost 4 parts (1p2n1w) 3216 | -7/Factory | Discovered new exit (range 7) 3429 | -7/Factory | Repaired Powered Armor 3488 | -7/Factory | System corruption reached 10% 4151 | -7/Factory | Sucked down chute 4151 | -7/Factory | Entered Waste 4151 | -7/Waste | The area was eerily silent 4747 | -7/Waste | Discovered new exit (range 14) 4782 | -7/Waste | Entered Factory 5209 | -7/Factory | Repaired Hvy. Siege Treads 5251 | -7/Factory | Discovered new exit (range 6) 6129 | -7/Factory | Garrison activated, responded to threat 6832 | -7/Factory | Discovered new exit (range 4) 7028 | -7/Factory | Build established: Mutant 7048 | -7/Factory | Discovered new exit (range 6) 7336 | -7/Factory | Build established: Tank 7398 | -7/Factory | Discovered new exit (range 5) 7582 | -7/Factory | First assault squad dispatched 8005 | -7/Factory | Discovered new exit (range 15) 8257 | -7/Factory | Repaired Hvy. Siege Treads 8881 | -7/Factory | Core integrity fell below 50% 8931 | -7/Factory | Lost 4 parts (1n3u) 8955 | -7/Factory | Destroyed 7 combat bots 9321 | -7/Factory | Lost 3 parts (1p1n1u) 9368 | -7/Factory | Destroyed 13 combat bots 9774 | -7/Factory | Lost 6 parts (3u3w) 10153 | -7/Factory | Lost 5 parts (1p2n2w) 10406 | -7/Factory | Build established: Scavenger-Mutant 10488 | -7/Factory | Core integrity fell below 20% 10493 | -7/Factory | Destroyed by G-47 Trooper with Particle Gun Last Messages --------------- 10487_ Destroyed Mining Laser. 10487_ Destroyed Wheel. 10487_ T-07 Excavator destroyed. 10487_ Fusion Modulator explodes. 10487_ Destroyed Wheel. 10487_ Lgt. Nuclear Core destroyed. 10487_ Destroyed Lgt. Nuclear Core. 10487_ Destroyed Welding Torch. 10487_ Destroyed Wheel. 10487_ Destroyed Terrain Scanner. 10487_ G-47 Trooper destroyed. 10487_ Fusion Modulator explodes. 10487_ Destroyed Lgt. Ion Engine. 10487_ K-01 Serf destroyed. 10487_ U-05 Engineer destroyed. 10490_ L-41 Fighter knocked back. 10490_ L-41 Fighter destroyed. 10490_ G-47 Trooper knocked back. 10492_ Critical hit (Burn: +37). 10492_ U-05 Engineer lays Concrete. Map ----- +----------------------------------------------------+ | *% %#= ###?????????????####+### """ " | | ###= ##??????????????# | | ###############??????????????# """ """ " | | = ###??????????????# """ """ " | | % = * #????????????????# """ """ " | | ! #????????????????# | | %%% #????????????????# | | %= " #????????????????# ^ | | =[% [ """ #????????????????# ######+######## | | " """ #????????????????# # #? | | =#????????????????# # #? | | """"" #????????????????# # / #? | | """"" #????????????????# # #? | | """ #??????????????? # # #? | | #???#??????????? # # #? | | #######+#####???# "???????? # # #? | | ????????????????# ?????? + # #? | | ??????#???????#?# ""??????" # # #? | | ####### #???### # ????? # # #? | | #####;; ;;;; ;#####;;# # #? | | ;;;; ;;;g # #? | | ; ! ;g ########+###### | | ; *=% #?#### | | ; %%;% ######## #?# | | ######????#u ; g=; #??????# ### | | #????????# ; @b *% m#??????# ^^ < | | #????????# ; % ;= #??????#####^ | | ########## ;%;= ;;!;#+########?????# | | + ; #?????#### | | # ##### ; """ """ """ #????????? | | # ###### """ """ """ #????????? | | + + """ """ """ #????????? | | ########## ###### #????????? | | #????????##########????# """ """ #????????? | | ##??????????????????????? """ """ """#????????? | | ????????????????????????? """ """ R"#????????? | | ????????????????????????# * """#????????? | | ????????????????????????# #????????? | | ????????????????????????#################????????? | | | | | | | | | | | | | | | | | | | | | | | +----------------------------------------------------+ Best States ------------- Heat Dissipation 88 Energy Generation 21 Energy Capacity 750 Matter Stores 300 Matter Capacity 450 Sight Range 16 Robot Scan Range 15 Terrain Scan Density 10 Power Amplification 20 Armor Coverage 1250 Resistance: EM 20 Evasion (%) 55 Targeting Accuracy 6 Recoil Reduction 3 Kinecelleration 30 Item Schematics ----------------- None Robot Schematics ------------------ None Fabricated ------------ Nothing Alien Tech Used ----------------- None Achievements -------------- None Challenges ------------ None Game ------ Seed ShockTachyonDeconstructor Manual? 0 Play Time 01:10:52 Cumulative 267.6 hours Start 2022.05.27 @ 13:37:57 End 2022.05.27 @ 14:57:43 Sessions 1 Manual Loads 0 Difficulty Rogue Special Mode None Game No. 354 Rogue 354 Adventurer 0 Explorer 0 Win Type - Total 5 Types 4/0/0/1/0/0/0/0/0 Lore% 67 Gallery% 79 Achievement% 57 Wizard Run 0 Options --------- ASCII 0 Keyboard 1 Movement Vi Keybinds 0 Fullscreen 1 Font 18/SmallcapsGlow Map View 76x50 Tactical HUD 1 Map Filters NONE Filters NONE Steam 1 RUN: a3147da3-c1e3-48f7-b85d-349db0e973ec